{"text_format":"3","workbook":"xlsx","n_sheets":1,"sheets":["2025年"],"not_rendered":{"defined_names":4},"read":"whole","date_system":"1900"}

{"sheet":"2025年","index":0,"n_rows":87,"n_cols":5,"rows_kept":87,"merged":[[0,0,0,4]]}
["2025年度支持港澳青年发展专项资金第一批次拟发放个人名单"]
["序号","单位","姓名","补贴事项","通过金额（元）"]
[1,"深圳易事办贸易有限公司","许荣翔","就业补贴",27000]
[{"$f":"A3+1","v":2},"深圳易事办贸易有限公司","许荣翔","生活补贴",18000]
[{"$f":"A4+1","v":3},"深圳熹乐晶跨境电商有限公司","袁铃怡","就业补贴",30000]
[4,"深圳熹乐晶跨境电商有限公司","袁铃怡","生活补贴",20000]
[5,"嗷嗷待布（深圳）科技有限公司","王芳","就业补贴",36000]
[6,"嗷嗷待布（深圳）科技有限公司","王芳","生活补贴",24000]
[7,"筑信建瓴（深圳）科技有限公司","潘力纲","就业补贴",80000]
[8,"筑信建瓴（深圳）科技有限公司","潘力纲","生活补贴",20000]
[9,"筑信建瓴（深圳）科技有限公司","潘力纲","居住补贴",8000]
[10,"深圳前海快两点文化科技有限公司","倪鸿财","就业补贴",21000]
[11,"深圳前海快两点文化科技有限公司","倪鸿财","生活补贴",14000]
[12,"深圳前海快两点文化科技有限公司","倪鸿财","居住补贴",7000]
[13,"深圳市快静电商有限责任公司","马荣隆","就业补贴",40000]
[14,"深圳市快静电商有限责任公司","马荣隆","生活补贴",20000]
[15,"中免（深圳）供应链科技有限公司","凌健","就业补贴",36000]
[16,"中免（深圳）供应链科技有限公司","凌健","生活补贴",24000]
[17,"中免（深圳）供应链科技有限公司","凌健","居住补贴",12000]
[18,"深圳市第三浪潮文化有限公司","游雅麟","就业补贴",48000]
[19,"深圳市第三浪潮文化有限公司","游雅麟","生活补贴",24000]
[20,"壁虎软件科技（深圳）有限公司","许华科","就业补贴",36000]
[21,"壁虎软件科技（深圳）有限公司","许华科","生活补贴",24000]
[22,"深圳市港研文教育科技有限责任公司","张伟杰","就业补贴",9000]
[23,"深圳市港研文教育科技有限责任公司","张伟杰","生活补贴",6000]
[24,"深圳市港研文教育科技有限责任公司","张伟杰","居住补贴",3000]
[25,"创富湾（深圳）企业管理咨询有限公司","赵志鹏","就业补贴",40000]
[26,"创富湾（深圳）企业管理咨询有限公司","赵志鹏","生活补贴",20000]
[27,"创富湾（深圳）企业管理咨询有限公司","赵志鹏","居住补贴",10000]
[28,"金颜算（深圳）科研服务有限责任公司","颜晓东","就业补贴",8000]
[29,"金颜算（深圳）科研服务有限责任公司","颜晓东","居住补贴",1000]
[30,"深圳市前海餐饮管理服务有限公司","张博进","就业补贴",48000]
[31,"深圳市前海餐饮管理服务有限公司","张博进","生活补贴",24000]
[32,"深圳市泓森服饰有限公司","王佩欣","就业补贴",12000]
[33,"深圳市泓森服饰有限公司","王佩欣","生活补贴",8000]
[34,"深圳市智汇酒业有限公司","董帝豪","就业补贴",3000]
[35,"深圳市智汇酒业有限公司","董帝豪","生活补贴",2000]
[36,"深圳市智汇酒业有限公司","董帝豪","居住补贴",1000]
[37,"深圳鸣溪娱乐文化有限公司","吴哲","就业补贴",28000]
[38,"深圳鸣溪娱乐文化有限公司","吴哲","生活补贴",14000]
[39,"深圳嘉诚绿发科创控股有限公司","杨利","生活补贴",24000]
[40,"智宝（深圳）信息技术有限公司","王安娜","就业补贴",28000]
[41,"智宝（深圳）信息技术有限公司","王安娜","生活补贴",14000]
[42,"智宝（深圳）信息技术有限公司","王安娜","居住补贴",7000]
[43,"瑞奇（深圳）跨境电商有限公司","董梓略","就业补贴",3000]
[44,"瑞奇（深圳）跨境电商有限公司","董梓略","生活补贴",2000]
[45,"瑞奇（深圳）跨境电商有限公司","董梓略","居住补贴",1000]
[46,"深圳万领钧科技有限公司","黄嘉敏","就业补贴",24000]
[47,{"$f":"B48","v":"深圳万领钧科技有限公司"},{"$f":"C48","v":"黄嘉敏"},"生活补贴",12000]
[48,"深圳国正郑郑税务师事务所有限公司","蔡仲豪","就业补贴",36000]
[49,"深圳国正郑郑税务师事务所有限公司","蔡仲豪","生活补贴",24000]
[50,"深圳国正郑郑税务师事务所有限公司","李月美","就业补贴",36000]
[51,"深圳国正郑郑税务师事务所有限公司","李月美","生活补贴",24000]
[52,"深圳国正郑郑税务师事务所有限公司","李月美","居住补贴",12000]
[53,"前海新征程（深圳）科创投资咨询有限公司","郑颖儿","就业补贴",32000]
[54,"前海新征程（深圳）科创投资咨询有限公司","郑颖儿","生活补贴",16000]
[55,"前海新征程（深圳）科创投资咨询有限公司","郑颖儿","居住补贴",7000]
[56,"前海新征程（深圳）科创投资咨询有限公司","成明欣","就业补贴",12000]
[57,"前海新征程（深圳）科创投资咨询有限公司","成明欣","生活补贴",6000]
[58,"谨博税务咨询（深圳）有限公司","蔡欣池","就业补贴",24000]
[59,"谨博税务咨询（深圳）有限公司","蔡欣池","生活补贴",16000]
[60,"谨博税务咨询（深圳）有限公司","蔡欣池","居住补贴",7000]
[61,"深圳凝火科技有限公司","钟沛林","就业补贴",3000]
[62,"深圳凝火科技有限公司","钟沛林","生活补贴",2000]
[63,"深圳凝火科技有限公司","钟沛林","居住补贴",1000]
[64,"深圳市金莱通贸易有限公司","黄翠兰","就业补贴",9000]
[65,"深圳市金莱通贸易有限公司","黄翠兰","生活补贴",6000]
[66,"深圳睦祺艺术设计有限公司","林凌","就业补贴",16000]
[{"$f":"A68+1","v":67},"深圳睦祺艺术设计有限公司","林凌","生活补贴",8000]
[68,"深圳睦祺艺术设计有限公司","林凌","居住补贴",4000]
[69,"深圳市明诚必达科技服务有限公司","梁智威","就业补贴",24000]
[70,"深圳市明诚必达科技服务有限公司","梁智威","生活补贴",24000]
[71,"深圳市明诚必达科技服务有限公司","梁智威","居住补贴",12000]
[72,"深圳市基克纳科技有限公司","张晖","就业补贴",40000]
[73,"深圳市基克纳科技有限公司","张晖","生活补贴",20000]
[74,"侨湾湾文创传媒（深圳）有限公司","谢文涣","就业补贴",36000]
[75,"侨湾湾文创传媒（深圳）有限公司","谢文涣","生活补贴",24000]
[76,"侨湾湾文创传媒（深圳）有限公司","柯庆霖","就业补贴",30000]
[77,"侨湾湾文创传媒（深圳）有限公司","柯庆霖","生活补贴",20000]
[78,"侨湾湾文创传媒（深圳）有限公司","孙宇文","就业补贴",27000]
[79,"深圳市清盟跃动科技有限公司","韩旭健","就业补贴",30000]
[80,"深圳市清盟跃动科技有限公司","韩旭健","生活补贴",20000]
[81,"启才通咨询顾问（深圳）有限公司","王李桃","就业补贴",6000]
[82,"启才通咨询顾问（深圳）有限公司","王李桃","生活补贴",4000]
[83,"深圳市黎恩珠宝有限公司","冯芷瑜","就业补贴",6000]
[84,"深圳市黎恩珠宝有限公司","冯芷瑜","生活补贴",4000]
[85,"深圳市黎恩珠宝有限公司","冯芷瑜","居住补贴",2000]